fUST/lending_fUST_20251216
["ID","MTS","AMOUNT","RATE_DAILY","PERIOD"]
[398587779,1765857091688,-611.28263063,0.00012876,2]
[398587780,1765857091702,-500.0,0.00012876,2]
[398587781,1765857091716,-500.0,0.00012876,2]
[398587782,1765857091731,-500.0,0.00012876,2]
[398587783,1765857091745,-500.0,0.00012876,2]
[398587784,1765857091759,-500.0,0.00012876,2]
[398587785,1765857091773,-500.0,0.00012876,2]
[398587786,1765857091788,-500.0,0.00012876,2]
[398587787,1765857091803,-500.0,0.00012876,2]
[398587788,1765857091820,-609.81,0.00012876,2]
[398587789,1765857091835,-600.92,0.00012876,2]
[398587790,1765857091850,-500.26,0.00012876,2]
[398587791,1765857091864,-635.26,0.00012876,2]
[398587792,1765857091879,-500.0,0.00012876,2]
[398587793,1765857091893,-500.0,0.00012876,2]
[398587794,1765857091907,-502.29684091,0.00012876,2]
[398587795,1765857091921,-2131.63,0.00012876,2]
[398587796,1765857091937,-468.1992161,0.00012876,2]
[398587797,1765857091952,-1239.05,0.00012876,2]
[398587798,1765857091966,-506.47483771,0.00012876,2]
[398587799,1765857091984,-832.5,0.00012876,2]
[398587800,1765857091999,-500.0,0.00012876,2]
[398587801,1765857092013,-500.0,0.00012876,2]
[398587802,1765857092027,-1281.42,0.00012876,2]
[398587803,1765857092041,-500.0,0.00012876,2]
[398587804,1765857092056,-706.65,0.00012876,2]
[398587805,1765857092071,-500.0,0.00012876,2]
[398587806,1765857092085,-500.0,0.00012876,2]
[398587807,1765857092098,-500.0,0.00012876,2]
[398587808,1765857092112,-500.0,0.00012876,2]
[398587809,1765857092128,-970.13,0.00012876,2]
[398587810,1765857092147,-500.0,0.00012876,2]
[398587811,1765857092165,-500.0,0.00012876,2]
[398587812,1765857092181,-905.09,0.00012876,2]
[398587813,1765857092195,-471.86914253,0.00012876,2]
[398587814,1765857092210,-500.0,0.00012876,2]
[398587815,1765857092224,-500.0,0.00012876,2]
[398587816,1765857092238,-1438.77,0.00012876,2]
[398587817,1765857092253,-2194.500583,0.00012876,2]
[398587818,1765857092268,-500.0,0.00012876,2]
[398587819,1765857092282,-500.0,0.00012876,2]
[398587820,1765857092297,-867.63,0.00012876,2]
[398587821,1765857092312,-500.81,0.00012876,2]
[398587822,1765857092327,-922.31,0.00012876,2]
[398587823,1765857092341,-500.0,0.00012876,2]
[398587824,1765857092355,-808.83,0.00012876,2]
[398587825,1765857092369,-500.0,0.00012876,2]
[398587826,1765857092383,-772.63,0.00012876,2]
[398587827,1765857092398,-500.0,0.00012876,2]
[398587828,1765857092418,-500.0,0.00012876,2]
[398587829,1765857092435,-724.68,0.00012876,2]
[398587830,1765857092450,-728.64,0.00012876,2]
[398587831,1765857092464,-1000.0,0.00012876,2]
[398587832,1765857092659,-500.0,0.00012876,2]
[398587833,1765857092674,-788.39,0.00012876,2]
[398587834,1765857092690,-713.19,0.00012876,2]
[398587835,1765857092699,-711.19,0.00012876,2]
[398587836,1765857092709,-1903.91,0.00012876,2]
[398587837,1765857092718,-500.0,0.00012876,2]
[398587838,1765857092727,-500.0,0.00012876,2]
[398587839,1765857092736,-1163.59,0.00012876,2]
[398587840,1765857092745,-541.86,0.00012876,2]
[398587841,1765857092754,-873.56,0.00012876,2]
[398587842,1765857092763,-500.0,0.00012876,2]
[398587843,1765857092772,-500.0,0.00012876,2]
[398587844,1765857092781,-500.0,0.00012876,2]
[398587845,1765857092790,-500.0,0.00012876,2]
[398587846,1765857092799,-500.0,0.00012876,2]
[398587847,1765857092809,-500.0,0.00012876,2]
[398587848,1765857092818,-623.95,0.00012876,2]
[398587849,1765857092828,-500.0,0.00012876,2]
[398587850,1765857092837,-500.0,0.00012876,2]
[398587851,1765857092847,-500.0,0.00012876,2]
[398587852,1765857092857,-939.88,0.00012876,2]
[398587853,1765857092866,-500.0,0.00012876,2]
[398587854,1765857092874,-514.0,0.00012876,2]
[398587855,1765857092883,-500.0,0.00012876,2]
[398587856,1765857092893,-500.0,0.00012876,2]
[398587857,1765857092902,-500.0,0.00012876,2]
[398587858,1765857092911,-500.0,0.00012876,2]
[398587859,1765857092921,-500.0,0.00012876,2]
[398587860,1765857092930,-1404.96,0.00012876,2]
[398587861,1765857092939,-2624.19,0.00012876,2]
[398587862,1765857092948,-1165.8,0.00012876,2]
[398587863,1765857092957,-782.31,0.00012876,2]
[398587864,1765857092966,-500.0,0.00012876,2]
[398587865,1765857092975,-500.0,0.00012876,2]
[398587866,1765857092984,-500.0,0.00012876,2]
[398587867,1765857092993,-500.0,0.00012876,2]
[398587868,1765857093003,-502.25824325,0.00012876,2]
[398587869,1765857093012,-500.0,0.00012876,2]
[398587870,1765857093022,-500.0,0.00012876,2]
[398587871,1765857093031,-500.0,0.00012876,2]
[398587872,1765857093040,-500.0,0.00012876,2]
[398587873,1765857093050,-2047.92,0.00012876,2]
[398587874,1765857093059,-500.0,0.00012876,2]
[398587875,1765857093068,-1419.58,0.00012876,2]
[398587876,1765857093078,-2858.67,0.00012876,2]
[398587877,1765857093087,-915.74,0.00012876,2]
[398587878,1765857093097,-500.0,0.00012876,2]
[398587879,1765857093107,-561.34,0.00012876,2]
[398587880,1765857093117,-862.14,0.00012876,2]
[398587881,1765857093126,-501.64923096,0.00012876,2]
[398587882,1765857093140,-728.64,0.00012876,2]
[398587883,1765857093149,-288.98246678,0.00012876,2]
[398587884,1765857093159,-1196.22,0.00012876,2]
[398587885,1765857093168,-500.0,0.00012876,2]
[398587886,1765857093178,-764.95,0.00012876,2]
[398587887,1765857093187,-1723.48,0.00012876,2]
[398587888,1765857093197,-505.24842508,0.00012876,2]
[398587889,1765857093207,-795.49,0.00012876,2]
[398587890,1765857093217,-500.0,0.00012876,2]
[398587891,1765857093227,-579.03,0.00012876,2]
[398587892,1765857093236,-527.94,0.00012876,2]
[398587893,1765857093246,-500.0,0.00012876,2]
[398587894,1765857093255,-613.42,0.00012876,2]
[398587895,1765857093265,-852.9,0.00012876,2]
[398587896,1765857093275,-1741.83,0.00012876,2]
[398587897,1765857093285,-500.0,0.00012876,2]
[398587898,1765857093295,-500.0,0.00012876,2]
[398587899,1765857093304,-579.96,0.00012876,2]
[398587900,1765857093314,-500.0,0.00012876,2]
[398587901,1765857093324,-500.0,0.00012876,2]
[398587902,1765857093334,-500.0,0.00012876,2]
[398587903,1765857093343,-882.7,0.00012876,2]
[398587904,1765857093353,-500.0,0.00012876,2]
[398587905,1765857093362,-909.29,0.00012876,2]
[398587906,1765857093371,-500.0,0.00012876,2]
[398587907,1765857093381,-500.0,0.00012876,2]
[398587908,1765857093390,-500.0,0.00012876,2]
[398587909,1765857093400,-500.0,0.00012876,2]
[398587910,1765857093410,-500.0,0.00012876,2]
[398587911,1765857093419,-500.0,0.00012876,2]
[398587912,1765857093429,-1389.03,0.00012876,2]
[398587913,1765857093438,-652.64,0.00012876,2]
[398587914,1765857093449,-500.0,0.00012876,2]
[398587915,1765857093459,-863.06,0.00012876,2]
[398587916,1765857093469,-946.95,0.00012876,2]
[398587917,1765857093478,-500.0,0.00012876,2]
[398587918,1765857093487,-752.63,0.00012876,2]
[398587919,1765857093497,-500.0,0.00012876,2]
[398587920,1765857093506,-500.0,0.00012876,2]
[398587921,1765857093515,-500.0,0.00012876,2]
[398587922,1765857093524,-1824.47,0.00012876,2]
[398587923,1765857093536,-631.43,0.00012876,2]
[398587924,1765857093545,-548.39,0.00012876,2]
[398587925,1765857093554,-500.0,0.00012876,2]
[398587926,1765857093564,-5069.0,0.00012876,2]
[398587927,1765857093573,-869.38,0.00012876,2]
[398587928,1765857093582,-500.0,0.00012876,2]
[398587929,1765857093591,-500.0,0.00012876,2]
[398587930,1765857093601,-1418.86,0.00012876,2]
[398587931,1765857093611,-502.50501796,0.00012876,2]
[398587932,1765857093620,-500.0,0.00012876,2]
[398587933,1765857093630,-1398.62,0.00012876,2]
[398587934,1765857093641,-2490.08,0.00012876,2]
[398587935,1765857093651,-500.0,0.00012876,2]
[398587936,1765857093662,-500.0,0.00012876,2]
[398587937,1765857093671,-886.06,0.00012876,2]
[398587938,1765857093680,-500.0,0.00012876,2]
[398587939,1765857093691,-500.0,0.00012876,2]
[398587940,1765857093701,-886.48,0.00012876,2]
[398587941,1765857093711,-528.18,0.00012876,2]
[398587942,1765857093720,-1144.03,0.00012876,2]
[398587943,1765857093730,-1839.21,0.00012876,2]
[398587944,1765857093740,-500.0,0.00012876,2]
[398587945,1765857093748,-500.0,0.00012876,2]
[398587946,1765857093758,-760.81,0.00012876,2]
[398587947,1765857093767,-500.0,0.00012876,2]
[398587948,1765857093776,-578.54,0.00012876,2]
[398587949,1765857093786,-500.0,0.00012876,2]
[398587950,1765857093796,-525.22,0.00012876,2]
[398587951,1765857093805,-1799.91,0.00012876,2]
[398587952,1765857093814,-500.0,0.00012876,2]
[398587953,1765857093823,-1395.69,0.00012876,2]
[398587954,1765857093834,-500.0,0.00012876,2]
[398587955,1765857093843,-500.0,0.00012876,2]
[398587956,1765857093853,-500.0,0.00012876,2]
[398587957,1765857093863,-500.0,0.00012876,2]
[398587958,1765857093872,-2489.6,0.00012876,2]
[398587959,1765857093882,-500.0,0.00012876,2]
[398587960,1765857093891,-500.0,0.00012876,2]
[398587961,1765857093901,-500.0,0.00012876,2]
[398587962,1765857093910,-500.0,0.00012876,2]
[398587963,1765857093920,-500.0,0.00012876,2]
[398587964,1765857093930,-3564.58,0.00012876,2]
[398587965,1765857093939,-1851.38,0.00012876,2]
[398587966,1765857093948,-1892.77,0.00012876,2]
[398587967,1765857093958,-500.0,0.00012876,2]
[398587968,1765857093967,-500.0,0.00012876,2]
[398587969,1765857093976,-554.05,0.00012876,2]
[398587970,1765857093985,-625.7,0.00012876,2]
[398587971,1765857093995,-614.05,0.00012876,2]
[398587972,1765857094004,-300.23980357,0.00012876,2]
[398587973,1765857094014,-1268.17,0.00012876,2]
[398587974,1765857094023,-500.0,0.00012876,2]
[398587975,1765857094033,-500.0,0.00012876,2]
[398587976,1765857094043,-964.39,0.00012876,2]
[398587977,1765857094052,-2548.3,0.00012876,2]
[398587978,1765857094061,-500.0,0.00012876,2]
[398587979,1765857094071,-500.0,0.00012876,2]
[398587980,1765857094080,-500.0,0.00012876,2]
[398587981,1765857094089,-2757.29,0.00012876,2]
[398587982,1765857094099,-921.12,0.00012876,2]
[398587983,1765857094108,-1379.13,0.00012876,2]
[398587984,1765857094117,-500.0,0.00012876,2]
[398587985,1765857094127,-1281.57,0.00012876,2]
[398587986,1765857094140,-500.0,0.00012876,2]
[398587987,1765857094149,-500.0,0.00012876,2]
[398587988,1765857094158,-500.0,0.00012876,2]
[398587989,1765857094167,-591.0,0.00012876,2]
[398587990,1765857094177,-349.47675088,0.00012876,2]
[398587991,1765857094186,-500.0,0.00012876,2]
[398587992,1765857094195,-621.24,0.00012876,2]
[398587993,1765857094205,-302.79031674,0.00012876,2]
[398587994,1765857094216,-500.0,0.00012876,2]
[398587995,1765857094225,-858.92,0.00012876,2]
[398587996,1765857094234,-604.25,0.00012876,2]
[398587997,1765857094243,-601.93,0.00012876,2]
[398587998,1765857094253,-1724.77,0.00012876,2]
[398587999,1765857094262,-500.0,0.00012876,2]
[398588000,1765857094271,-1883.58,0.00012876,2]
[398588001,1765857094281,-500.0,0.00012876,2]
[398588002,1765857094290,-500.0,0.00012876,2]
[398588003,1765857094300,-897.25,0.00012876,2]
[398588004,1765857094309,-1210.79,0.00012876,2]
[398588005,1765857094319,-1351.77,0.00012876,2]
[398588006,1765857094328,-500.0,0.00012876,2]
[398588007,1765857094337,-773.94,0.00012876,2]
[398588008,1765857094346,-500.0,0.00012876,2]
[398588009,1765857094355,-724.47,0.00012876,2]
[398588010,1765857094364,-500.0,0.00012876,2]
[398588011,1765857094374,-1559.66,0.00012876,2]
[398588012,1765857094383,-500.0,0.00012876,2]
[398588013,1765857094393,-629.26256053,0.00012876,2]
[398588014,1765857094403,-658.19,0.00012876,2]
[398588015,1765857094413,-901.9,0.00012876,2]
[398588016,1765857094423,-500.0,0.00012876,2]
[398588017,1765857094435,-1664.36,0.00012876,2]
[398588018,1765857094444,-500.0,0.00012876,2]
[398588019,1765857094453,-500.0,0.00012876,2]
[398588020,1765857094462,-540.02,0.00012876,2]
[398588021,1765857094472,-1280.6,0.00012876,2]
[398588022,1765857094481,-1404.56,0.00012876,2]
[398588023,1765857094491,-500.0,0.00012876,2]
[398588024,1765857094501,-577.11,0.00012876,2]
[398588025,1765857094510,-517.8,0.00012876,2]
[398588026,1765857094519,-851.34,0.00012876,2]
[398588027,1765857094530,-1225.41,0.00012876,2]
[398588028,1765857094539,-500.0,0.00012876,2]
[398588029,1765857094548,-500.0,0.00012876,2]
[398588030,1765857094557,-500.0,0.00012876,2]
[398588031,1765857094565,-6779.98,0.00012876,2]
[398588032,1765857094574,-500.0,0.00012876,2]
[398588033,1765857094583,-241.08819683,0.00012876,2]
[398588034,1765857094592,-500.0,0.00012876,2]
[398588035,1765857094601,-500.0,0.00012876,2]
[398588036,1765857094611,-879.62,0.00012876,2]
[398588037,1765857094620,-500.0,0.00012876,2]
[398588038,1765857094629,-849.34,0.00012876,2]
[398588039,1765857094638,-4220.16,0.00012876,2]
[398588040,1765857094649,-500.0,0.00012876,2]
[398588041,1765857094659,-500.0,0.00012876,2]
[398588042,1765857094668,-500.0,0.00012876,2]
[398588043,1765857094678,-500.0,0.00012876,2]
[398588044,1765857094689,-2541.48,0.00012876,2]
[398588045,1765857094699,-500.0,0.00012876,2]
[398588046,1765857094710,-618.0,0.00012876,2]
[398588047,1765857094721,-1330.94,0.00012876,2]
[398588048,1765857094731,-639.20674631,0.00012876,2]
[398588049,1765857094869,-502.75,0.00012876,2]
[398588050,1765857094880,-1721.89,0.00012876,2]
[398588051,1765857094889,-1471.73,0.00012876,2]
[398588052,1765857094898,-1794.66,0.00012876,2]
[398588053,1765857094907,-566.35989235,0.00012876,2]
[398588054,1765857094916,-500.0,0.00012876,2]
[398588055,1765857094925,-500.0,0.00012876,2]
[398588056,1765857094934,-1436.2,0.00012876,2]
[398588057,1765857094943,-919.0,0.00012876,2]
[398588058,1765857094952,-1483.78,0.00012876,2]
[398588059,1765857094961,-500.0,0.00012876,2]
[398588060,1765857094970,-9283.55,0.00012876,2]
[398588061,1765857094979,-1109.0,0.00012876,2]
[398588062,1765857094989,-930.78,0.00012876,2]
[398588063,1765857094998,-700.85,0.00012876,2]
[398588064,1765857095008,-500.0,0.00012876,2]
[398588065,1765857095016,-2453.55,0.00012876,2]
[398588066,1765857095026,-707.6,0.00012876,2]
[398588067,1765857095035,-536.25,0.00012876,2]
[398588068,1765857095045,-500.0,0.00012876,2]
[398588069,1765857095054,-500.0,0.00012876,2]
[398588070,1765857095063,-990.55,0.00012876,2]
[398588071,1765857095072,-500.0,0.00012876,2]
[398588072,1765857095082,-2349.49,0.00012876,2]
[398588073,1765857095092,-2196.03,0.00012876,2]
[398588074,1765857095101,-500.0,0.00012876,2]
[398588075,1765857095111,-1420.86,0.00012876,2]
[398588076,1765857095120,-1354.29,0.00012876,2]
[398588077,1765857095130,-1566.76,0.00012876,2]
[398588078,1765857095141,-500.0,0.00012876,2]
[398588079,1765857095151,-1789.22,0.00012876,2]
[398588080,1765857095160,-500.0,0.00012876,2]
[398588081,1765857095169,-975.67,0.00012876,2]
[398588082,1765857095178,-997.09,0.00012876,2]
[398588083,1765857095187,-1344.17,0.00012876,2]
[398588084,1765857095196,-600.75,0.00012876,2]
[398588085,1765857095205,-500.0,0.00012876,2]
[398588086,1765857095219,-4842.15,0.00012876,2]
[398588087,1765857095228,-500.0,0.00012876,2]
[398588088,1765857095238,-938.39,0.00012876,2]
[398588089,1765857095246,-513.63,0.00012876,2]
[398588090,1765857095256,-1372.69,0.00012876,2]
[398588091,1765857095265,-504.96615841,0.00012876,2]
[398588092,1765857095274,-500.0,0.00012876,2]
[398588093,1765857095283,-1192.19,0.00012876,2]
[398588094,1765857095293,-825.5,0.00012876,2]
[398588095,1765857095302,-2748.55,0.00012876,2]
[398588096,1765857095312,-500.0,0.00012876,2]
[398588097,1765857095321,-2322.09,0.00012876,2]
[398588098,1765857095330,-708.11,0.00012876,2]
[398588099,1765857095340,-2125.4,0.00012876,2]
[398588100,1765857095349,-500.0,0.00012876,2]
[398588101,1765857095358,-500.0,0.00012876,2]
[398588102,1765857095367,-6830.61,0.00012876,2]
[398588103,1765857095376,-500.0,0.00012876,2]
[398588104,1765857095385,-8377.94,0.00012876,2]
[398588105,1765857095394,-503.91710349,0.00012876,2]
[398588106,1765857095403,-2121.87,0.00012876,2]
[398588107,1765857095412,-500.0,0.00012876,2]
[398588108,1765857095421,-858.84,0.00012876,2]
[398588109,1765857095430,-945.29,0.00012876,2]
[398588110,1765857095439,-1092.05,0.00012876,2]
[398588111,1765857095448,-580.26,0.00012876,2]
[398588112,1765857095458,-500.0,0.00012876,2]
[398588113,1765857095467,-500.0,0.00012876,2]
[398588114,1765857095476,-2445.72,0.00012876,2]
[398588115,1765857095487,-500.0,0.00012876,2]
[398588116,1765857095496,-3903.36,0.00012876,2]
[398588117,1765857095506,-537.08,0.00012876,2]
[398588118,1765857095515,-618.36,0.00012876,2]
[398588119,1765857095524,-225.57585833,0.00012876,2]
[398588120,1765857095534,-4243.55,0.00012876,2]
[398588121,1765857095543,-500.0,0.00012876,2]
[398588122,1765857095552,-1422.62,0.00012876,2]
[398588123,1765857095561,-800.38,0.00012876,2]
[398588124,1765857095569,-1202.09,0.00012876,2]
[398588125,1765857095578,-799.6,0.00012876,2]
[398588126,1765857095587,-520.25,0.00012876,2]
[398588127,1765857095598,-14584.18,0.00012876,2]
[398588128,1765857095606,-2341.35,0.00012876,2]
[398588129,1765857095615,-500.0,0.00012876,2]
[398588130,1765857095624,-614.63,0.00012876,2]
[398588131,1765857095633,-2042.99,0.00012876,2]
[398588132,1765857095642,-3921.7,0.00012876,2]
[398588133,1765857095650,-500.0,0.00012876,2]
[398588134,1765857095659,-2154.94,0.00012876,2]
[398588135,1765857095668,-1164.37,0.00012876,2]
[398588136,1765857095676,-1452.17,0.00012876,2]
[398588137,1765857095685,-500.0,0.00012876,2]
[398588138,1765857095694,-3354.89,0.00012876,2]
[398588139,1765857095703,-500.0,0.00012876,2]
[398588140,1765857095712,-885.63,0.00012876,2]
[398588141,1765857095721,-583.17,0.00012876,2]
[398588142,1765857095731,-500.0,0.00012876,2]
[398588143,1765857095740,-934.17,0.00012876,2]
[398588144,1765857095749,-500.0,0.00012876,2]
[398588145,1765857095757,-500.0,0.00012876,2]
[398588146,1765857095768,-2662.12,0.00012876,2]
[398588147,1765857095777,-1389.33,0.00012876,2]
[398588148,1765857095786,-940.07,0.00012876,2]
[398588149,1765857095794,-2691.53,0.00012876,2]
[398588150,1765857095803,-500.0,0.00012876,2]
[398588151,1765857095813,-500.0,0.00012876,2]
[398588152,1765857095823,-500.0,0.00012876,2]
[398588153,1765857095832,-500.0,0.00012876,2]
[398588154,1765857095841,-947.29,0.00012876,2]
[398588155,1765857095850,-500.0,0.00012876,2]
[398588156,1765857095859,-500.0,0.00012876,2]
[398588157,1765857095868,-1434.18,0.00012876,2]
[398588158,1765857095877,-607.29,0.00012876,2]
[398588159,1765857095886,-506.70006658,0.00012876,2]
[398588160,1765857095895,-500.0,0.00012876,2]
[398588161,1765857095904,-500.0,0.00012876,2]
[398588162,1765857095913,-3493.92,0.00012876,2]
[398588163,1765857095923,-500.0,0.00012876,2]
[398588164,1765857095932,-500.0,0.00012876,2]
[398588165,1765857095941,-1734.78,0.00012876,2]
[398588166,1765857095950,-529.53,0.00012876,2]
[398588167,1765857095958,-500.0,0.00012876,2]
[398588168,1765857095967,-1497.62,0.00012876,2]
[398588169,1765857095977,-1890.34,0.00012876,2]
[398588170,1765857095986,-1724.14,0.00012876,2]
[398588171,1765857095995,-1321.15,0.00012876,2]
[398588172,1765857096004,-627.84,0.00012876,2]
[398588173,1765857096014,-1136.33,0.00012876,2]
[398588174,1765857096023,-500.0,0.00012876,2]
[398588175,1765857096032,-2584.7,0.00012876,2]
[398588176,1765857096041,-552.16893489,0.00012876,2]
[398588177,1765857096051,-906.3,0.00012876,2]
[398588178,1765857096061,-523.47,0.00012876,2]
[398588179,1765857096070,-500.0,0.00012876,2]
[398588180,1765857096079,-860.33,0.00012876,2]
[398588181,1765857096088,-1103.9,0.00012876,2]
[398588182,1765857096097,-500.0,0.00012876,2]
[398588183,1765857096106,-526.2,0.00012876,2]
[398588184,1765857096115,-625.36,0.00012876,2]
[398588185,1765857096125,-500.0,0.00012876,2]
[398588186,1765857096136,-500.0,0.00012876,2]
[398588187,1765857096145,-3387.17,0.00012876,2]
[398588188,1765857096154,-838.05,0.00012876,2]
[398588189,1765857096163,-500.0,0.00012876,2]
[398588190,1765857096171,-717.42,0.00012876,2]
[398588191,1765857096182,-500.0,0.00012876,2]
[398588192,1765857096191,-11122.08,0.00012876,2]
[398588193,1765857096200,-1435.24,0.00012876,2]
[398588194,1765857096209,-645.68,0.00012876,2]
[398588195,1765857096220,-22080.53,0.00012876,2]
[398588196,1765857096229,-3719.53,0.00012876,2]
[398588197,1765857096238,-368.1889936,0.00012876,2]
[398588198,1765857096247,-835.99,0.00012876,2]
[398588199,1765857096256,-1808.12,0.00012876,2]
[398588200,1765857096265,-500.0,0.00012876,2]
[398588201,1765857096274,-500.0,0.00012876,2]
[398588202,1765857096283,-500.0,0.00012876,2]
[398588203,1765857096292,-8246.11,0.00012876,2]
[398588204,1765857096301,-1665.52,0.00012876,2]
[398588205,1765857096309,-500.0,0.00012876,2]
[398588206,1765857096318,-500.0,0.00012876,2]
[398588207,1765857096328,-500.0,0.00012876,2]
[398588208,1765857096336,-505.05,0.00012876,2]
[398588209,1765857096347,-500.0,0.00012876,2]
[398588210,1765857096356,-5019.38,0.00012876,2]
[398588211,1765857096365,-688.63,0.00012876,2]
[398588212,1765857096373,-980.38,0.00012876,2]
[398588213,1765857096382,-2863.98,0.00012876,2]
[398588214,1765857096391,-2333.27,0.00012876,2]
[398588215,1765857096400,-500.0,0.00012876,2]
[398588216,1765857096409,-500.0,0.00012876,2]
[398588217,1765857096418,-375.95072456,0.00012876,2]
[398588218,1765857096426,-884.98,0.00012876,2]
[398588219,1765857096435,-2011.13,0.00012876,2]
[398588220,1765857096444,-500.0,0.00012876,2]
[398588221,1765857096453,-561.14,0.00012876,2]
[398588222,1765857096462,-1161.7,0.00012876,2]
[398588223,1765857096473,-5555.9,0.00012876,2]
[398588224,1765857096481,-1243.71,0.00012876,2]
[398588225,1765857096490,-35354.14,0.00012876,2]
[398588226,1765857096499,-9588.87,0.00012876,2]
[398588227,1765857096508,-500.0,0.00012876,2]
[398588228,1765857096517,-1419.14,0.00012876,2]
[398588229,1765857096525,-1172.55,0.00012876,2]
[398588230,1765857096534,-500.0,0.00012876,2]
[398588231,1765857096543,-500.0,0.00012876,2]
[398588232,1765857096552,-2089.03,0.00012876,2]
[398588233,1765857096561,-542.8905456,0.00012876,2]
[398588234,1765857096570,-3963.15,0.00012876,2]
[398588235,1765857096580,-2257.39,0.00012876,2]
[398588236,1765857096588,-1097.79,0.00012876,2]
[398588237,1765857096597,-1991.38,0.00012876,2]
[398588238,1765857096606,-841.22,0.00012876,2]
[398588239,1765857096615,-500.0,0.00012876,2]
[398588240,1765857096624,-500.0,0.00012876,2]
[398588241,1765857096633,-500.0,0.00012876,2]
[398588242,1765857096642,-800.38,0.00012876,2]
[398588243,1765857096651,-1431.03,0.00012876,2]
[398588244,1765857096659,-500.0,0.00012876,2]
[398588245,1765857096668,-8351.41,0.00012876,2]
[398588246,1765857096677,-500.0,0.00012876,2]
[398588247,1765857096686,-1423.76,0.00012876,2]
[398588248,1765857096695,-896.79,0.00012876,2]
[398588249,1765857096704,-500.0,0.00012876,2]
[398588250,1765857096713,-1140.27,0.00012876,2]
[398588251,1765857096723,-4075.24,0.00012876,2]
[398588252,1765857096731,-914.19,0.00012876,2]
[398588253,1765857096740,-500.0,0.00012876,2]
[398588254,1765857096749,-500.0,0.00012876,2]
[398588255,1765857096758,-3247.84,0.00012876,2]
[398588256,1765857096768,-1445.43,0.00012876,2]
[398588257,1765857096776,-500.0,0.00012876,2]
[398588258,1765857096786,-638.22972623,0.00012876,2]
[398588259,1765857096794,-940.6,0.00012876,2]
[398588260,1765857096803,-246.82,0.00012876,2]
[398588261,1765857096812,-500.0,0.00012876,2]
[398588262,1765857096822,-1956.75,0.00012876,2]
[398588263,1765857096830,-500.0,0.00012876,2]
[398588264,1765857096839,-1069.42,0.00012876,2]
[398588265,1765857096849,-2026.56,0.00012876,2]
[398588266,1765857096858,-1628.96,0.00012876,2]
[398588267,1765857096867,-1954.46,0.00012876,2]
[398588268,1765857096876,-1842.29,0.00012876,2]
[398588269,1765857096886,-500.0,0.00012876,2]
[398588270,1765857096895,-500.0,0.00012876,2]
[398588271,1765857096904,-500.0,0.00012876,2]
[398588272,1765857096913,-1249.58,0.00012876,2]
[398588273,1765857096922,-5203.28,0.00012876,2]
[398588274,1765857096931,-2367.41,0.00012876,2]
[398588275,1765857096940,-3863.02,0.00012876,2]
[398588276,1765857096949,-500.0,0.00012876,2]
[398588277,1765857096958,-2306.5,0.00012876,2]
[398588278,1765857096967,-5137.41,0.00012876,2]